{"text_format":"3","workbook":"xlsx","n_sheets":5,"sheets":["Übersicht seit Jahresbeginn","1. Q","2. Q","3. Q","4. Q"],"not_rendered":{"defined_names":12},"read":"whole","date_system":"1900"}

{"sheet":"Übersicht seit Jahresbeginn","index":0,"n_rows":36,"n_cols":12,"rows_kept":36,"merged":[[3,0,3,6]]}
["Firmenname"]
["Nachverfolgung der Anwesenheit, Übersicht seit Jahresbeginn"]
["Datum"]
[{"$f":"Firmenname","v":"Firmenname"},{"$nulls":6},"VERTRAULICH"]
["Nachname","Vorname","Urlaub","Private Gründe","Krankheit","SSN","Position","Vorgesetzter","Einstellungsdatum","Kommentare","Urlaubstage \npro Jahr","Urlaubstage \nverbleibend"]
["Nachname","Vorname",{"$f":"SUM('1. Q:4. Q'!C6)","v":3},{"$f":"SUM('1. Q:4. Q'!D6)","v":0},{"$f":"SUM('1. Q:4. Q'!E6)","v":1},"xxx-xx-xxxx","Leiter","Name",null,null,10,{"$f":"K6-C6","v":7}]
[null,null,{"$f":"SUM('1. Q:4. Q'!C7)","v":0},{"$f":"SUM('1. Q:4. Q'!D7)","v":0},{"$f":"SUM('1. Q:4. Q'!E7)","v":0},{"$nulls":6},{"$f":"K7-C7","v":0}]
[null,null,{"$f":"SUM('1. Q:4. Q'!C8)","v":0},{"$f":"SUM('1. Q:4. Q'!D8)","v":0},{"$f":"SUM('1. Q:4. Q'!E8)","v":0},{"$nulls":6},0]
[null,null,{"$f":"SUM('1. Q:4. Q'!C9)","v":0},{"$f":"SUM('1. Q:4. Q'!D9)","v":0},{"$f":"SUM('1. Q:4. Q'!E9)","v":0},{"$nulls":6},0]
[null,null,{"$f":"SUM('1. Q:4. Q'!C10)","v":0},{"$f":"SUM('1. Q:4. Q'!D10)","v":0},{"$f":"SUM('1. Q:4. Q'!E10)","v":0},{"$nulls":6},0]
[null,null,{"$f":"SUM('1. Q:4. Q'!C11)","v":0},{"$f":"SUM('1. Q:4. Q'!D11)","v":0},{"$f":"SUM('1. Q:4. Q'!E11)","v":0},{"$nulls":6},0]
[null,null,{"$f":"SUM('1. Q:4. Q'!C12)","v":0},{"$f":"SUM('1. Q:4. Q'!D12)","v":0},{"$f":"SUM('1. Q:4. Q'!E12)","v":0},{"$nulls":6},0]
[null,null,{"$f":"SUM('1. Q:4. Q'!C13)","v":0},{"$f":"SUM('1. Q:4. Q'!D13)","v":0},{"$f":"SUM('1. Q:4. Q'!E13)","v":0},{"$nulls":6},0]
[null,null,{"$f":"SUM('1. Q:4. Q'!C14)","v":0},{"$f":"SUM('1. Q:4. Q'!D14)","v":0},{"$f":"SUM('1. Q:4. Q'!E14)","v":0},{"$nulls":6},0]
[null,null,{"$f":"SUM('1. Q:4. Q'!C15)","v":0},{"$f":"SUM('1. Q:4. Q'!D15)","v":0},{"$f":"SUM('1. Q:4. Q'!E15)","v":0},{"$nulls":6},0]
[null,null,{"$f":"SUM('1. Q:4. Q'!C16)","v":0},{"$f":"SUM('1. Q:4. Q'!D16)","v":0},{"$f":"SUM('1. Q:4. Q'!E16)","v":0},{"$nulls":6},0]
[null,null,{"$f":"SUM('1. Q:4. Q'!C17)","v":0},{"$f":"SUM('1. Q:4. Q'!D17)","v":0},{"$f":"SUM('1. Q:4. Q'!E17)","v":0},{"$nulls":6},0]
[null,null,{"$f":"SUM('1. Q:4. Q'!C18)","v":0},{"$f":"SUM('1. Q:4. Q'!D18)","v":0},{"$f":"SUM('1. Q:4. Q'!E18)","v":0},{"$nulls":6},0]
[null,null,{"$f":"SUM('1. Q:4. Q'!C19)","v":0},{"$f":"SUM('1. Q:4. Q'!D19)","v":0},{"$f":"SUM('1. Q:4. Q'!E19)","v":0},{"$nulls":6},0]
[null,null,{"$f":"SUM('1. Q:4. Q'!C20)","v":0},{"$f":"SUM('1. Q:4. Q'!D20)","v":0},{"$f":"SUM('1. Q:4. Q'!E20)","v":0},{"$nulls":6},0]
[null,null,{"$f":"SUM('1. Q:4. Q'!C21)","v":0},{"$f":"SUM('1. Q:4. Q'!D21)","v":0},{"$f":"SUM('1. Q:4. Q'!E21)","v":0},{"$nulls":6},0]
[null,null,{"$f":"SUM('1. Q:4. Q'!C22)","v":0},{"$f":"SUM('1. Q:4. Q'!D22)","v":0},{"$f":"SUM('1. Q:4. Q'!E22)","v":0},{"$nulls":6},0]
[null,null,{"$f":"SUM('1. Q:4. Q'!C23)","v":0},{"$f":"SUM('1. Q:4. Q'!D23)","v":0},{"$f":"SUM('1. Q:4. Q'!E23)","v":0},{"$nulls":6},0]
[null,null,{"$f":"SUM('1. Q:4. Q'!C24)","v":0},{"$f":"SUM('1. Q:4. Q'!D24)","v":0},{"$f":"SUM('1. Q:4. Q'!E24)","v":0},{"$nulls":6},0]
[null,null,{"$f":"SUM('1. Q:4. Q'!C25)","v":0},{"$f":"SUM('1. Q:4. Q'!D25)","v":0},{"$f":"SUM('1. Q:4. Q'!E25)","v":0},{"$nulls":6},0]
[null,null,{"$f":"SUM('1. Q:4. Q'!C26)","v":0},{"$f":"SUM('1. Q:4. Q'!D26)","v":0},{"$f":"SUM('1. Q:4. Q'!E26)","v":0},{"$nulls":6},0]
[null,null,{"$f":"SUM('1. Q:4. Q'!C27)","v":0},{"$f":"SUM('1. Q:4. Q'!D27)","v":0},{"$f":"SUM('1. Q:4. Q'!E27)","v":0},{"$nulls":6},0]
[null,null,{"$f":"SUM('1. Q:4. Q'!C28)","v":0},{"$f":"SUM('1. Q:4. Q'!D28)","v":0},{"$f":"SUM('1. Q:4. Q'!E28)","v":0},{"$nulls":6},0]
[null,null,{"$f":"SUM('1. Q:4. Q'!C29)","v":0},{"$f":"SUM('1. Q:4. Q'!D29)","v":0},{"$f":"SUM('1. Q:4. Q'!E29)","v":0},{"$nulls":6},0]
[null,null,{"$f":"SUM('1. Q:4. Q'!C30)","v":0},{"$f":"SUM('1. Q:4. Q'!D30)","v":0},{"$f":"SUM('1. Q:4. Q'!E30)","v":0},{"$nulls":6},0]
[null,null,{"$f":"SUM('1. Q:4. Q'!C31)","v":0},{"$f":"SUM('1. Q:4. Q'!D31)","v":0},{"$f":"SUM('1. Q:4. Q'!E31)","v":0},{"$nulls":6},0]
[null,null,{"$f":"SUM('1. Q:4. Q'!C32)","v":0},{"$f":"SUM('1. Q:4. Q'!D32)","v":0},{"$f":"SUM('1. Q:4. Q'!E32)","v":0},{"$nulls":6},0]
[null,null,{"$f":"SUM('1. Q:4. Q'!C33)","v":0},{"$f":"SUM('1. Q:4. Q'!D33)","v":0},{"$f":"SUM('1. Q:4. Q'!E33)","v":0},{"$nulls":6},0]
[null,null,{"$f":"SUM('1. Q:4. Q'!C34)","v":0},{"$f":"SUM('1. Q:4. Q'!D34)","v":0},{"$f":"SUM('1. Q:4. Q'!E34)","v":0},{"$nulls":6},0]
[null,null,{"$f":"SUM('1. Q:4. Q'!C35)","v":0},{"$f":"SUM('1. Q:4. Q'!D35)","v":0},{"$f":"SUM('1. Q:4. Q'!E35)","v":0},{"$nulls":6},0]
[null,null,{"$f":"SUM('1. Q:4. Q'!C36)","v":0},{"$f":"SUM('1. Q:4. Q'!D36)","v":0},{"$f":"SUM('1. Q:4. Q'!E36)","v":0},{"$nulls":6},0]

{"sheet":"1. Q","index":1,"n_rows":36,"n_cols":95,"rows_kept":36,"merged":[[3,0,3,6]]}
[{"$f":"Firmenname","v":"Firmenname"}]
["Nachverfolgung der Anwesenheit, 1. Quartal"]
["Datum"]
[{"$f":"Firmenname","v":"Firmenname"},{"$nulls":6},"VERTRAULICH"]
["Nachname","Vorname","Urlaub","Private Gründe","Krankheit","1.1.","2.1.","3.1.","4.1.","5.1.","6.1.","7.1.","8.1.","9.1.","10.1.","11.1.","12.1.","13.1.","14.1.","15.1.","16.1.","17.1.","18.1.","19.1.","20.1.","21.1.","22.1.","23.1.","24.1.","25.1.","26.1.","27.1.","28.1.","29.1.","30.1.","31.1.","1.2.","2.2.","3.2.","4.2.","5.2.","6.2.","7.2.","8.2.","9.2.","10.2.","11.2.","12.2.","13.2.","14.2.","15.2.","16.2.","17.2.","18.2.","19.2.","20.2.","21.2.","22.2.","23.2.","24.2.","25.2.","26.2.","27.2.","28.2.","1.3.","2.3.","3.3.","4.3.","5.3.","6.3.","7.3.","8.3.","9.3.","10.3.","11.3.","12.3.","13.3.","14.3.","15.3.","16.3.","17.3.","18.3.","19.3.","20.3.","21.3.","22.3.","23.3.","24.3.","25.3.","26.3.","27.3.","28.3.","29.3.","30.3.","31.3."]
[{"$f":"IF(ISBLANK('Übersicht seit Jahresbeginn'!A6),\"\",'Übersicht seit Jahresbeginn'!A6)","v":"Nachname"},{"$f":"IF(ISBLANK('Übersicht seit Jahresbeginn'!B6),\"\",'Übersicht seit Jahresbeginn'!B6)","v":"Vorname"},{"$f":"COUNTIF($F6:$CQ6, \"U\")","v":3},{"$f":"COUNTIF($F6:$CQ6, \"P\")","v":0},{"$f":"COUNTIF($F6:$CQ6, \"K\")","v":1},"u","u","u",{"$nulls":4},"k"]
[{"$f":"IF(ISBLANK('Übersicht seit Jahresbeginn'!A7),\"\",'Übersicht seit Jahresbeginn'!A7)","v":""},{"$f":"IF(ISBLANK('Übersicht seit Jahresbeginn'!B7),\"\",'Übersicht seit Jahresbeginn'!B7)","v":""},0,0,0]
[{"$f":"IF(ISBLANK('Übersicht seit Jahresbeginn'!A8),\"\",'Übersicht seit Jahresbeginn'!A8)","v":""},{"$f":"IF(ISBLANK('Übersicht seit Jahresbeginn'!B8),\"\",'Übersicht seit Jahresbeginn'!B8)","v":""},0,0,0]
[{"$f":"IF(ISBLANK('Übersicht seit Jahresbeginn'!A9),\"\",'Übersicht seit Jahresbeginn'!A9)","v":""},{"$f":"IF(ISBLANK('Übersicht seit Jahresbeginn'!B9),\"\",'Übersicht seit Jahresbeginn'!B9)","v":""},0,0,0]
[{"$f":"IF(ISBLANK('Übersicht seit Jahresbeginn'!A10),\"\",'Übersicht seit Jahresbeginn'!A10)","v":""},{"$f":"IF(ISBLANK('Übersicht seit Jahresbeginn'!B10),\"\",'Übersicht seit Jahresbeginn'!B10)","v":""},0,0,0]
[{"$f":"IF(ISBLANK('Übersicht seit Jahresbeginn'!A11),\"\",'Übersicht seit Jahresbeginn'!A11)","v":""},{"$f":"IF(ISBLANK('Übersicht seit Jahresbeginn'!B11),\"\",'Übersicht seit Jahresbeginn'!B11)","v":""},0,0,0]
[{"$f":"IF(ISBLANK('Übersicht seit Jahresbeginn'!A12),\"\",'Übersicht seit Jahresbeginn'!A12)","v":""},{"$f":"IF(ISBLANK('Übersicht seit Jahresbeginn'!B12),\"\",'Übersicht seit Jahresbeginn'!B12)","v":""},0,0,0]
[{"$f":"IF(ISBLANK('Übersicht seit Jahresbeginn'!A13),\"\",'Übersicht seit Jahresbeginn'!A13)","v":""},{"$f":"IF(ISBLANK('Übersicht seit Jahresbeginn'!B13),\"\",'Übersicht seit Jahresbeginn'!B13)","v":""},0,0,0]
[{"$f":"IF(ISBLANK('Übersicht seit Jahresbeginn'!A14),\"\",'Übersicht seit Jahresbeginn'!A14)","v":""},{"$f":"IF(ISBLANK('Übersicht seit Jahresbeginn'!B14),\"\",'Übersicht seit Jahresbeginn'!B14)","v":""},0,0,0]
[{"$f":"IF(ISBLANK('Übersicht seit Jahresbeginn'!A15),\"\",'Übersicht seit Jahresbeginn'!A15)","v":""},{"$f":"IF(ISBLANK('Übersicht seit Jahresbeginn'!B15),\"\",'Übersicht seit Jahresbeginn'!B15)","v":""},0,0,0]
[{"$f":"IF(ISBLANK('Übersicht seit Jahresbeginn'!A16),\"\",'Übersicht seit Jahresbeginn'!A16)","v":""},{"$f":"IF(ISBLANK('Übersicht seit Jahresbeginn'!B16),\"\",'Übersicht seit Jahresbeginn'!B16)","v":""},0,0,0]
[{"$f":"IF(ISBLANK('Übersicht seit Jahresbeginn'!A17),\"\",'Übersicht seit Jahresbeginn'!A17)","v":""},{"$f":"IF(ISBLANK('Übersicht seit Jahresbeginn'!B17),\"\",'Übersicht seit Jahresbeginn'!B17)","v":""},0,0,0]
[{"$f":"IF(ISBLANK('Übersicht seit Jahresbeginn'!A18),\"\",'Übersicht seit Jahresbeginn'!A18)","v":""},{"$f":"IF(ISBLANK('Übersicht seit Jahresbeginn'!B18),\"\",'Übersicht seit Jahresbeginn'!B18)","v":""},0,0,0]
[{"$f":"IF(ISBLANK('Übersicht seit Jahresbeginn'!A19),\"\",'Übersicht seit Jahresbeginn'!A19)","v":""},{"$f":"IF(ISBLANK('Übersicht seit Jahresbeginn'!B19),\"\",'Übersicht seit Jahresbeginn'!B19)","v":""},0,0,0]
[{"$f":"IF(ISBLANK('Übersicht seit Jahresbeginn'!A20),\"\",'Übersicht seit Jahresbeginn'!A20)","v":""},{"$f":"IF(ISBLANK('Übersicht seit Jahresbeginn'!B20),\"\",'Übersicht seit Jahresbeginn'!B20)","v":""},0,0,0]
[{"$f":"IF(ISBLANK('Übersicht seit Jahresbeginn'!A21),\"\",'Übersicht seit Jahresbeginn'!A21)","v":""},{"$f":"IF(ISBLANK('Übersicht seit Jahresbeginn'!B21),\"\",'Übersicht seit Jahresbeginn'!B21)","v":""},0,0,0]
[{"$f":"IF(ISBLANK('Übersicht seit Jahresbeginn'!A22),\"\",'Übersicht seit Jahresbeginn'!A22)","v":""},{"$f":"IF(ISBLANK('Übersicht seit Jahresbeginn'!B22),\"\",'Übersicht seit Jahresbeginn'!B22)","v":""},0,0,0]
[{"$f":"IF(ISBLANK('Übersicht seit Jahresbeginn'!A23),\"\",'Übersicht seit Jahresbeginn'!A23)","v":""},{"$f":"IF(ISBLANK('Übersicht seit Jahresbeginn'!B23),\"\",'Übersicht seit Jahresbeginn'!B23)","v":""},0,0,0]
[{"$f":"IF(ISBLANK('Übersicht seit Jahresbeginn'!A24),\"\",'Übersicht seit Jahresbeginn'!A24)","v":""},{"$f":"IF(ISBLANK('Übersicht seit Jahresbeginn'!B24),\"\",'Übersicht seit Jahresbeginn'!B24)","v":""},0,0,0]
[{"$f":"IF(ISBLANK('Übersicht seit Jahresbeginn'!A25),\"\",'Übersicht seit Jahresbeginn'!A25)","v":""},{"$f":"IF(ISBLANK('Übersicht seit Jahresbeginn'!B25),\"\",'Übersicht seit Jahresbeginn'!B25)","v":""},0,0,0]
[{"$f":"IF(ISBLANK('Übersicht seit Jahresbeginn'!A26),\"\",'Übersicht seit Jahresbeginn'!A26)","v":""},{"$f":"IF(ISBLANK('Übersicht seit Jahresbeginn'!B26),\"\",'Übersicht seit Jahresbeginn'!B26)","v":""},0,0,0]
[{"$f":"IF(ISBLANK('Übersicht seit Jahresbeginn'!A27),\"\",'Übersicht seit Jahresbeginn'!A27)","v":""},{"$f":"IF(ISBLANK('Übersicht seit Jahresbeginn'!B27),\"\",'Übersicht seit Jahresbeginn'!B27)","v":""},0,0,0]
[{"$f":"IF(ISBLANK('Übersicht seit Jahresbeginn'!A28),\"\",'Übersicht seit Jahresbeginn'!A28)","v":""},{"$f":"IF(ISBLANK('Übersicht seit Jahresbeginn'!B28),\"\",'Übersicht seit Jahresbeginn'!B28)","v":""},0,0,0]
[{"$f":"IF(ISBLANK('Übersicht seit Jahresbeginn'!A29),\"\",'Übersicht seit Jahresbeginn'!A29)","v":""},{"$f":"IF(ISBLANK('Übersicht seit Jahresbeginn'!B29),\"\",'Übersicht seit Jahresbeginn'!B29)","v":""},0,0,0]
[{"$f":"IF(ISBLANK('Übersicht seit Jahresbeginn'!A30),\"\",'Übersicht seit Jahresbeginn'!A30)","v":""},{"$f":"IF(ISBLANK('Übersicht seit Jahresbeginn'!B30),\"\",'Übersicht seit Jahresbeginn'!B30)","v":""},0,0,0]
[{"$f":"IF(ISBLANK('Übersicht seit Jahresbeginn'!A31),\"\",'Übersicht seit Jahresbeginn'!A31)","v":""},{"$f":"IF(ISBLANK('Übersicht seit Jahresbeginn'!B31),\"\",'Übersicht seit Jahresbeginn'!B31)","v":""},0,0,0]
[{"$f":"IF(ISBLANK('Übersicht seit Jahresbeginn'!A32),\"\",'Übersicht seit Jahresbeginn'!A32)","v":""},{"$f":"IF(ISBLANK('Übersicht seit Jahresbeginn'!B32),\"\",'Übersicht seit Jahresbeginn'!B32)","v":""},0,0,0]
[{"$f":"IF(ISBLANK('Übersicht seit Jahresbeginn'!A33),\"\",'Übersicht seit Jahresbeginn'!A33)","v":""},{"$f":"IF(ISBLANK('Übersicht seit Jahresbeginn'!B33),\"\",'Übersicht seit Jahresbeginn'!B33)","v":""},0,0,0]
[{"$f":"IF(ISBLANK('Übersicht seit Jahresbeginn'!A34),\"\",'Übersicht seit Jahresbeginn'!A34)","v":""},{"$f":"IF(ISBLANK('Übersicht seit Jahresbeginn'!B34),\"\",'Übersicht seit Jahresbeginn'!B34)","v":""},0,0,0]
[{"$f":"IF(ISBLANK('Übersicht seit Jahresbeginn'!A35),\"\",'Übersicht seit Jahresbeginn'!A35)","v":""},{"$f":"IF(ISBLANK('Übersicht seit Jahresbeginn'!B35),\"\",'Übersicht seit Jahresbeginn'!B35)","v":""},0,0,0]
[{"$f":"IF(ISBLANK('Übersicht seit Jahresbeginn'!A36),\"\",'Übersicht seit Jahresbeginn'!A36)","v":""},{"$f":"IF(ISBLANK('Übersicht seit Jahresbeginn'!B36),\"\",'Übersicht seit Jahresbeginn'!B36)","v":""},0,0,0]

{"sheet":"2. Q","index":2,"n_rows":36,"n_cols":96,"rows_kept":36,"merged":[[3,0,3,6]]}
[{"$f":"Firmenname","v":"Firmenname"}]
["Nachverfolgung der Anwesenheit, 2. Quartal"]
["Datum"]
[{"$f":"Firmenname","v":"Firmenname"},{"$nulls":6},"VERTRAULICH"]
["Nachname","Vorname","Urlaub","Private Gründe","Krankheit","1.4.","2.4.","3.4.","4.4.","5.4.","6.4.","7.4.","8.4.","9.4.","10.4.","11.4.","12.4.","13.4.","14.4.","15.4.","16.4.","17.4.","18.4.","19.4.","20.4.","21.4.","22.4.","23.4.","24.4.","25.4.","26.4.","27.4.","28.4.","29.4.","30.4.","1.5.","2.5.","3.5.","4.5.","5.5.","6.5.","7.5.","8.5.","9.5.","10.5.","11.5.","12.5.","13.5.","14.5.","15.5.","16.5.","17.5.","18.5.","19.5.","20.5.","21.5.","22.5.","23.5.","24.5.","25.5.","26.5.","27.5.","28.5.","29.5.","30.5.","31.5.","1.6.","2.6.","3.6.","4.6.","5.6.","6.6.","7.6.","8.6.","9.6.","10.6.","11.6.","12.6.","13.6.","14.6.","15.6.","16.6.","17.6.","18.6.","19.6.","20.6.","21.6.","22.6.","23.6.","24.6.","25.6.","26.6.","27.6.","28.6.","29.6.","30.6."]
[{"$f":"IF(ISBLANK('Übersicht seit Jahresbeginn'!A6),\"\",'Übersicht seit Jahresbeginn'!A6)","v":"Nachname"},{"$f":"IF(ISBLANK('Übersicht seit Jahresbeginn'!B6),\"\",'Übersicht seit Jahresbeginn'!B6)","v":"Vorname"},{"$f":"COUNTIF($F6:$CR6, \"U\")","v":0},{"$f":"COUNTIF($F6:$CR6, \"P\")","v":0},{"$f":"COUNTIF($F6:$CR6, \"K\")","v":0}]
[{"$f":"IF(ISBLANK('Übersicht seit Jahresbeginn'!A7),\"\",'Übersicht seit Jahresbeginn'!A7)","v":""},{"$f":"IF(ISBLANK('Übersicht seit Jahresbeginn'!B7),\"\",'Übersicht seit Jahresbeginn'!B7)","v":""},0,{"$f":"COUNTIF($F7:$CR7, \"P\")","v":0},0]
[{"$f":"IF(ISBLANK('Übersicht seit Jahresbeginn'!A8),\"\",'Übersicht seit Jahresbeginn'!A8)","v":""},{"$f":"IF(ISBLANK('Übersicht seit Jahresbeginn'!B8),\"\",'Übersicht seit Jahresbeginn'!B8)","v":""},0,0,0]
[{"$f":"IF(ISBLANK('Übersicht seit Jahresbeginn'!A9),\"\",'Übersicht seit Jahresbeginn'!A9)","v":""},{"$f":"IF(ISBLANK('Übersicht seit Jahresbeginn'!B9),\"\",'Übersicht seit Jahresbeginn'!B9)","v":""},0,0,0]
[{"$f":"IF(ISBLANK('Übersicht seit Jahresbeginn'!A10),\"\",'Übersicht seit Jahresbeginn'!A10)","v":""},{"$f":"IF(ISBLANK('Übersicht seit Jahresbeginn'!B10),\"\",'Übersicht seit Jahresbeginn'!B10)","v":""},0,0,0]
[{"$f":"IF(ISBLANK('Übersicht seit Jahresbeginn'!A11),\"\",'Übersicht seit Jahresbeginn'!A11)","v":""},{"$f":"IF(ISBLANK('Übersicht seit Jahresbeginn'!B11),\"\",'Übersicht seit Jahresbeginn'!B11)","v":""},0,0,0]
[{"$f":"IF(ISBLANK('Übersicht seit Jahresbeginn'!A12),\"\",'Übersicht seit Jahresbeginn'!A12)","v":""},{"$f":"IF(ISBLANK('Übersicht seit Jahresbeginn'!B12),\"\",'Übersicht seit Jahresbeginn'!B12)","v":""},0,0,0]
[{"$f":"IF(ISBLANK('Übersicht seit Jahresbeginn'!A13),\"\",'Übersicht seit Jahresbeginn'!A13)","v":""},{"$f":"IF(ISBLANK('Übersicht seit Jahresbeginn'!B13),\"\",'Übersicht seit Jahresbeginn'!B13)","v":""},0,0,0]
[{"$f":"IF(ISBLANK('Übersicht seit Jahresbeginn'!A14),\"\",'Übersicht seit Jahresbeginn'!A14)","v":""},{"$f":"IF(ISBLANK('Übersicht seit Jahresbeginn'!B14),\"\",'Übersicht seit Jahresbeginn'!B14)","v":""},0,0,0]
[{"$f":"IF(ISBLANK('Übersicht seit Jahresbeginn'!A15),\"\",'Übersicht seit Jahresbeginn'!A15)","v":""},{"$f":"IF(ISBLANK('Übersicht seit Jahresbeginn'!B15),\"\",'Übersicht seit Jahresbeginn'!B15)","v":""},0,0,0]
[{"$f":"IF(ISBLANK('Übersicht seit Jahresbeginn'!A16),\"\",'Übersicht seit Jahresbeginn'!A16)","v":""},{"$f":"IF(ISBLANK('Übersicht seit Jahresbeginn'!B16),\"\",'Übersicht seit Jahresbeginn'!B16)","v":""},0,0,0]
[{"$f":"IF(ISBLANK('Übersicht seit Jahresbeginn'!A17),\"\",'Übersicht seit Jahresbeginn'!A17)","v":""},{"$f":"IF(ISBLANK('Übersicht seit Jahresbeginn'!B17),\"\",'Übersicht seit Jahresbeginn'!B17)","v":""},0,0,0]
[{"$f":"IF(ISBLANK('Übersicht seit Jahresbeginn'!A18),\"\",'Übersicht seit Jahresbeginn'!A18)","v":""},{"$f":"IF(ISBLANK('Übersicht seit Jahresbeginn'!B18),\"\",'Übersicht seit Jahresbeginn'!B18)","v":""},0,0,0]
[{"$f":"IF(ISBLANK('Übersicht seit Jahresbeginn'!A19),\"\",'Übersicht seit Jahresbeginn'!A19)","v":""},{"$f":"IF(ISBLANK('Übersicht seit Jahresbeginn'!B19),\"\",'Übersicht seit Jahresbeginn'!B19)","v":""},0,0,0]
[{"$f":"IF(ISBLANK('Übersicht seit Jahresbeginn'!A20),\"\",'Übersicht seit Jahresbeginn'!A20)","v":""},{"$f":"IF(ISBLANK('Übersicht seit Jahresbeginn'!B20),\"\",'Übersicht seit Jahresbeginn'!B20)","v":""},0,0,0]
[{"$f":"IF(ISBLANK('Übersicht seit Jahresbeginn'!A21),\"\",'Übersicht seit Jahresbeginn'!A21)","v":""},{"$f":"IF(ISBLANK('Übersicht seit Jahresbeginn'!B21),\"\",'Übersicht seit Jahresbeginn'!B21)","v":""},0,0,0]
[{"$f":"IF(ISBLANK('Übersicht seit Jahresbeginn'!A22),\"\",'Übersicht seit Jahresbeginn'!A22)","v":""},{"$f":"IF(ISBLANK('Übersicht seit Jahresbeginn'!B22),\"\",'Übersicht seit Jahresbeginn'!B22)","v":""},0,0,0]
[{"$f":"IF(ISBLANK('Übersicht seit Jahresbeginn'!A23),\"\",'Übersicht seit Jahresbeginn'!A23)","v":""},{"$f":"IF(ISBLANK('Übersicht seit Jahresbeginn'!B23),\"\",'Übersicht seit Jahresbeginn'!B23)","v":""},0,0,0]
[{"$f":"IF(ISBLANK('Übersicht seit Jahresbeginn'!A24),\"\",'Übersicht seit Jahresbeginn'!A24)","v":""},{"$f":"IF(ISBLANK('Übersicht seit Jahresbeginn'!B24),\"\",'Übersicht seit Jahresbeginn'!B24)","v":""},0,0,0]
[{"$f":"IF(ISBLANK('Übersicht seit Jahresbeginn'!A25),\"\",'Übersicht seit Jahresbeginn'!A25)","v":""},{"$f":"IF(ISBLANK('Übersicht seit Jahresbeginn'!B25),\"\",'Übersicht seit Jahresbeginn'!B25)","v":""},0,0,0]
[{"$f":"IF(ISBLANK('Übersicht seit Jahresbeginn'!A26),\"\",'Übersicht seit Jahresbeginn'!A26)","v":""},{"$f":"IF(ISBLANK('Übersicht seit Jahresbeginn'!B26),\"\",'Übersicht seit Jahresbeginn'!B26)","v":""},0,0,0]
[{"$f":"IF(ISBLANK('Übersicht seit Jahresbeginn'!A27),\"\",'Übersicht seit Jahresbeginn'!A27)","v":""},{"$f":"IF(ISBLANK('Übersicht seit Jahresbeginn'!B27),\"\",'Übersicht seit Jahresbeginn'!B27)","v":""},0,0,0]
[{"$f":"IF(ISBLANK('Übersicht seit Jahresbeginn'!A28),\"\",'Übersicht seit Jahresbeginn'!A28)","v":""},{"$f":"IF(ISBLANK('Übersicht seit Jahresbeginn'!B28),\"\",'Übersicht seit Jahresbeginn'!B28)","v":""},0,0,0]
[{"$f":"IF(ISBLANK('Übersicht seit Jahresbeginn'!A29),\"\",'Übersicht seit Jahresbeginn'!A29)","v":""},{"$f":"IF(ISBLANK('Übersicht seit Jahresbeginn'!B29),\"\",'Übersicht seit Jahresbeginn'!B29)","v":""},0,0,0]
[{"$f":"IF(ISBLANK('Übersicht seit Jahresbeginn'!A30),\"\",'Übersicht seit Jahresbeginn'!A30)","v":""},{"$f":"IF(ISBLANK('Übersicht seit Jahresbeginn'!B30),\"\",'Übersicht seit Jahresbeginn'!B30)","v":""},0,0,0]
[{"$f":"IF(ISBLANK('Übersicht seit Jahresbeginn'!A31),\"\",'Übersicht seit Jahresbeginn'!A31)","v":""},{"$f":"IF(ISBLANK('Übersicht seit Jahresbeginn'!B31),\"\",'Übersicht seit Jahresbeginn'!B31)","v":""},0,0,0]
[{"$f":"IF(ISBLANK('Übersicht seit Jahresbeginn'!A32),\"\",'Übersicht seit Jahresbeginn'!A32)","v":""},{"$f":"IF(ISBLANK('Übersicht seit Jahresbeginn'!B32),\"\",'Übersicht seit Jahresbeginn'!B32)","v":""},0,0,0]
[{"$f":"IF(ISBLANK('Übersicht seit Jahresbeginn'!A33),\"\",'Übersicht seit Jahresbeginn'!A33)","v":""},{"$f":"IF(ISBLANK('Übersicht seit Jahresbeginn'!B33),\"\",'Übersicht seit Jahresbeginn'!B33)","v":""},0,0,0]
[{"$f":"IF(ISBLANK('Übersicht seit Jahresbeginn'!A34),\"\",'Übersicht seit Jahresbeginn'!A34)","v":""},{"$f":"IF(ISBLANK('Übersicht seit Jahresbeginn'!B34),\"\",'Übersicht seit Jahresbeginn'!B34)","v":""},0,0,0]
[{"$f":"IF(ISBLANK('Übersicht seit Jahresbeginn'!A35),\"\",'Übersicht seit Jahresbeginn'!A35)","v":""},{"$f":"IF(ISBLANK('Übersicht seit Jahresbeginn'!B35),\"\",'Übersicht seit Jahresbeginn'!B35)","v":""},0,0,0]
[{"$f":"IF(ISBLANK('Übersicht seit Jahresbeginn'!A36),\"\",'Übersicht seit Jahresbeginn'!A36)","v":""},{"$f":"IF(ISBLANK('Übersicht seit Jahresbeginn'!B36),\"\",'Übersicht seit Jahresbeginn'!B36)","v":""},0,0,0]

{"sheet":"3. Q","index":3,"n_rows":36,"n_cols":97,"rows_kept":36,"merged":[[3,0,3,6]]}
[{"$f":"Firmenname","v":"Firmenname"}]
["Nachverfolgung der Anwesenheit, 3. Quartal"]
["Datum"]
[{"$f":"Firmenname","v":"Firmenname"},{"$nulls":6},"VERTRAULICH"]
["Nachname","Vorname","Urlaub","Private Gründe","Krankheit","1.7.","2.7.","3.7.","4.7.","5.7.","6.7.","7.7.","8.7.","9.7.","10.7.","11.7.","12.7.","13.7.","14.7.","15.7.","16.7.","17.7.","18.7.","19.7.","20.7.","21.7.","22.7.","23.7.","24.7.","25.7.","26.7.","27.7.","28.7.","29.7.","30.7.","31.7.","1.8.","2.8.","3.8.","4.8.","5.8.","6.8.","7.8.","8.8.","9.8.","10.8.","11.8.","12.8.","13.8.","14.8.","15.8.","16.8.","17.8.","18.8.","19.8.","20.8.","21.8.","22.8.","23.8.","24.8.","25.8.","26.8.","27.8.","28.8.","29.8.","30.8.","31.8.","1.9.","2.9.","3.9.","4.9.","5.9.","6.9.","7.9.","8.9.","9.9.","10.9.","11.9.","12.9.","13.9.","14.9.","15.9.","16.9.","17.9.","18.9.","19.9.","20.9.","21.9.","22.9.","23.9.","24.9.","25.9.","26.9.","27.9.","28.9.","29.9.","30.9."]
[{"$f":"IF(ISBLANK('Übersicht seit Jahresbeginn'!A6),\"\",'Übersicht seit Jahresbeginn'!A6)","v":"Nachname"},{"$f":"IF(ISBLANK('Übersicht seit Jahresbeginn'!B6),\"\",'Übersicht seit Jahresbeginn'!B6)","v":"Vorname"},{"$f":"COUNTIF($F6:$CS6, \"U\")","v":0},{"$f":"COUNTIF($F6:$CS6, \"P\")","v":0},{"$f":"COUNTIF($F6:$CS6, \"K\")","v":0}]
[{"$f":"IF(ISBLANK('Übersicht seit Jahresbeginn'!A7),\"\",'Übersicht seit Jahresbeginn'!A7)","v":""},{"$f":"IF(ISBLANK('Übersicht seit Jahresbeginn'!B7),\"\",'Übersicht seit Jahresbeginn'!B7)","v":""},0,{"$f":"COUNTIF($F7:$CS7, \"P\")","v":0},0]
[{"$f":"IF(ISBLANK('Übersicht seit Jahresbeginn'!A8),\"\",'Übersicht seit Jahresbeginn'!A8)","v":""},{"$f":"IF(ISBLANK('Übersicht seit Jahresbeginn'!B8),\"\",'Übersicht seit Jahresbeginn'!B8)","v":""},0,0,0]
[{"$f":"IF(ISBLANK('Übersicht seit Jahresbeginn'!A9),\"\",'Übersicht seit Jahresbeginn'!A9)","v":""},{"$f":"IF(ISBLANK('Übersicht seit Jahresbeginn'!B9),\"\",'Übersicht seit Jahresbeginn'!B9)","v":""},0,0,0]
[{"$f":"IF(ISBLANK('Übersicht seit Jahresbeginn'!A10),\"\",'Übersicht seit Jahresbeginn'!A10)","v":""},{"$f":"IF(ISBLANK('Übersicht seit Jahresbeginn'!B10),\"\",'Übersicht seit Jahresbeginn'!B10)","v":""},0,0,0]
[{"$f":"IF(ISBLANK('Übersicht seit Jahresbeginn'!A11),\"\",'Übersicht seit Jahresbeginn'!A11)","v":""},{"$f":"IF(ISBLANK('Übersicht seit Jahresbeginn'!B11),\"\",'Übersicht seit Jahresbeginn'!B11)","v":""},0,0,0]
[{"$f":"IF(ISBLANK('Übersicht seit Jahresbeginn'!A12),\"\",'Übersicht seit Jahresbeginn'!A12)","v":""},{"$f":"IF(ISBLANK('Übersicht seit Jahresbeginn'!B12),\"\",'Übersicht seit Jahresbeginn'!B12)","v":""},0,0,0]
[{"$f":"IF(ISBLANK('Übersicht seit Jahresbeginn'!A13),\"\",'Übersicht seit Jahresbeginn'!A13)","v":""},{"$f":"IF(ISBLANK('Übersicht seit Jahresbeginn'!B13),\"\",'Übersicht seit Jahresbeginn'!B13)","v":""},0,0,0]
[{"$f":"IF(ISBLANK('Übersicht seit Jahresbeginn'!A14),\"\",'Übersicht seit Jahresbeginn'!A14)","v":""},{"$f":"IF(ISBLANK('Übersicht seit Jahresbeginn'!B14),\"\",'Übersicht seit Jahresbeginn'!B14)","v":""},0,0,0]
[{"$f":"IF(ISBLANK('Übersicht seit Jahresbeginn'!A15),\"\",'Übersicht seit Jahresbeginn'!A15)","v":""},{"$f":"IF(ISBLANK('Übersicht seit Jahresbeginn'!B15),\"\",'Übersicht seit Jahresbeginn'!B15)","v":""},0,0,0]
[{"$f":"IF(ISBLANK('Übersicht seit Jahresbeginn'!A16),\"\",'Übersicht seit Jahresbeginn'!A16)","v":""},{"$f":"IF(ISBLANK('Übersicht seit Jahresbeginn'!B16),\"\",'Übersicht seit Jahresbeginn'!B16)","v":""},0,0,0]
[{"$f":"IF(ISBLANK('Übersicht seit Jahresbeginn'!A17),\"\",'Übersicht seit Jahresbeginn'!A17)","v":""},{"$f":"IF(ISBLANK('Übersicht seit Jahresbeginn'!B17),\"\",'Übersicht seit Jahresbeginn'!B17)","v":""},0,0,0]
[{"$f":"IF(ISBLANK('Übersicht seit Jahresbeginn'!A18),\"\",'Übersicht seit Jahresbeginn'!A18)","v":""},{"$f":"IF(ISBLANK('Übersicht seit Jahresbeginn'!B18),\"\",'Übersicht seit Jahresbeginn'!B18)","v":""},0,0,0]
[{"$f":"IF(ISBLANK('Übersicht seit Jahresbeginn'!A19),\"\",'Übersicht seit Jahresbeginn'!A19)","v":""},{"$f":"IF(ISBLANK('Übersicht seit Jahresbeginn'!B19),\"\",'Übersicht seit Jahresbeginn'!B19)","v":""},0,0,0]
[{"$f":"IF(ISBLANK('Übersicht seit Jahresbeginn'!A20),\"\",'Übersicht seit Jahresbeginn'!A20)","v":""},{"$f":"IF(ISBLANK('Übersicht seit Jahresbeginn'!B20),\"\",'Übersicht seit Jahresbeginn'!B20)","v":""},0,0,0]
[{"$f":"IF(ISBLANK('Übersicht seit Jahresbeginn'!A21),\"\",'Übersicht seit Jahresbeginn'!A21)","v":""},{"$f":"IF(ISBLANK('Übersicht seit Jahresbeginn'!B21),\"\",'Übersicht seit Jahresbeginn'!B21)","v":""},0,0,0]
[{"$f":"IF(ISBLANK('Übersicht seit Jahresbeginn'!A22),\"\",'Übersicht seit Jahresbeginn'!A22)","v":""},{"$f":"IF(ISBLANK('Übersicht seit Jahresbeginn'!B22),\"\",'Übersicht seit Jahresbeginn'!B22)","v":""},0,0,0]
[{"$f":"IF(ISBLANK('Übersicht seit Jahresbeginn'!A23),\"\",'Übersicht seit Jahresbeginn'!A23)","v":""},{"$f":"IF(ISBLANK('Übersicht seit Jahresbeginn'!B23),\"\",'Übersicht seit Jahresbeginn'!B23)","v":""},0,0,0]
[{"$f":"IF(ISBLANK('Übersicht seit Jahresbeginn'!A24),\"\",'Übersicht seit Jahresbeginn'!A24)","v":""},{"$f":"IF(ISBLANK('Übersicht seit Jahresbeginn'!B24),\"\",'Übersicht seit Jahresbeginn'!B24)","v":""},0,0,0]
[{"$f":"IF(ISBLANK('Übersicht seit Jahresbeginn'!A25),\"\",'Übersicht seit Jahresbeginn'!A25)","v":""},{"$f":"IF(ISBLANK('Übersicht seit Jahresbeginn'!B25),\"\",'Übersicht seit Jahresbeginn'!B25)","v":""},0,0,0]
[{"$f":"IF(ISBLANK('Übersicht seit Jahresbeginn'!A26),\"\",'Übersicht seit Jahresbeginn'!A26)","v":""},{"$f":"IF(ISBLANK('Übersicht seit Jahresbeginn'!B26),\"\",'Übersicht seit Jahresbeginn'!B26)","v":""},0,0,0]
[{"$f":"IF(ISBLANK('Übersicht seit Jahresbeginn'!A27),\"\",'Übersicht seit Jahresbeginn'!A27)","v":""},{"$f":"IF(ISBLANK('Übersicht seit Jahresbeginn'!B27),\"\",'Übersicht seit Jahresbeginn'!B27)","v":""},0,0,0]
[{"$f":"IF(ISBLANK('Übersicht seit Jahresbeginn'!A28),\"\",'Übersicht seit Jahresbeginn'!A28)","v":""},{"$f":"IF(ISBLANK('Übersicht seit Jahresbeginn'!B28),\"\",'Übersicht seit Jahresbeginn'!B28)","v":""},0,0,0]
[{"$f":"IF(ISBLANK('Übersicht seit Jahresbeginn'!A29),\"\",'Übersicht seit Jahresbeginn'!A29)","v":""},{"$f":"IF(ISBLANK('Übersicht seit Jahresbeginn'!B29),\"\",'Übersicht seit Jahresbeginn'!B29)","v":""},0,0,0]
[{"$f":"IF(ISBLANK('Übersicht seit Jahresbeginn'!A30),\"\",'Übersicht seit Jahresbeginn'!A30)","v":""},{"$f":"IF(ISBLANK('Übersicht seit Jahresbeginn'!B30),\"\",'Übersicht seit Jahresbeginn'!B30)","v":""},0,0,0]
[{"$f":"IF(ISBLANK('Übersicht seit Jahresbeginn'!A31),\"\",'Übersicht seit Jahresbeginn'!A31)","v":""},{"$f":"IF(ISBLANK('Übersicht seit Jahresbeginn'!B31),\"\",'Übersicht seit Jahresbeginn'!B31)","v":""},0,0,0]
[{"$f":"IF(ISBLANK('Übersicht seit Jahresbeginn'!A32),\"\",'Übersicht seit Jahresbeginn'!A32)","v":""},{"$f":"IF(ISBLANK('Übersicht seit Jahresbeginn'!B32),\"\",'Übersicht seit Jahresbeginn'!B32)","v":""},0,0,0]
[{"$f":"IF(ISBLANK('Übersicht seit Jahresbeginn'!A33),\"\",'Übersicht seit Jahresbeginn'!A33)","v":""},{"$f":"IF(ISBLANK('Übersicht seit Jahresbeginn'!B33),\"\",'Übersicht seit Jahresbeginn'!B33)","v":""},0,0,0]
[{"$f":"IF(ISBLANK('Übersicht seit Jahresbeginn'!A34),\"\",'Übersicht seit Jahresbeginn'!A34)","v":""},{"$f":"IF(ISBLANK('Übersicht seit Jahresbeginn'!B34),\"\",'Übersicht seit Jahresbeginn'!B34)","v":""},0,0,0]
[{"$f":"IF(ISBLANK('Übersicht seit Jahresbeginn'!A35),\"\",'Übersicht seit Jahresbeginn'!A35)","v":""},{"$f":"IF(ISBLANK('Übersicht seit Jahresbeginn'!B35),\"\",'Übersicht seit Jahresbeginn'!B35)","v":""},0,0,0]
[{"$f":"IF(ISBLANK('Übersicht seit Jahresbeginn'!A36),\"\",'Übersicht seit Jahresbeginn'!A36)","v":""},{"$f":"IF(ISBLANK('Übersicht seit Jahresbeginn'!B36),\"\",'Übersicht seit Jahresbeginn'!B36)","v":""},0,0,0]

{"sheet":"4. Q","index":4,"n_rows":36,"n_cols":97,"rows_kept":36,"merged":[[3,0,3,6]]}
[{"$f":"Firmenname","v":"Firmenname"}]
["Nachverfolgung der Anwesenheit, 4. Quartal"]
["Datum"]
[{"$f":"Firmenname","v":"Firmenname"},{"$nulls":6},"VERTRAULICH"]
["Nachname","Vorname","Urlaub","Private Gründe","Krankheit","1.10.","2.10.","3.10.","4.10.","5.10.","6.10.","7.10.","8.10.","9.10.","10.10.","11.10.","12.10.","13.10.","14.10.","15.10.","16.10.","17.10.","18.10.","19.10.","20.10.","21.10.","22.10.","23.10.","24.10.","25.10.","26.10.","27.10.","28.10.","29.10.","30.10","31.10.","1.11.","2.11.","3.11.","4.11.","5.11.","6.11.","7.11.","8.11.","9.11.","10.11.","11.11.","12.11.","13.11.","14.11.","15.11.","16.11.","17.11.","18.11.","19.11.","20.11.","21.11.","22.11.","23.11.","24.11.","25.11.","26.11.","27.11.","28.11.","29.11.","30.11.","1.12.","2.12.","3.12.","4.12.","5.12.","6.12.","7.12.","8.12.","9.12.","10.12.","11.12.","12.12.","13.12.","14.12.","15.12.","16.12.","17.12.","18.12.","19.12.","20.12.","21.12.","22.12.","23.12.","24.12.","25.12.","26.12.","27.12.","28.12.","29.12.","30.12.","31.12."]
[{"$f":"IF(ISBLANK('Übersicht seit Jahresbeginn'!A6),\"\",'Übersicht seit Jahresbeginn'!A6)","v":"Nachname"},{"$f":"IF(ISBLANK('Übersicht seit Jahresbeginn'!B6),\"\",'Übersicht seit Jahresbeginn'!B6)","v":"Vorname"},{"$f":"COUNTIF($F6:$CS6, \"U\")","v":0},{"$f":"COUNTIF($F6:CS6, \"P\")","v":0},{"$f":"COUNTIF($F6:CS6, \"K\")","v":0}]
[{"$f":"IF(ISBLANK('Übersicht seit Jahresbeginn'!A7),\"\",'Übersicht seit Jahresbeginn'!A7)","v":""},{"$f":"IF(ISBLANK('Übersicht seit Jahresbeginn'!B7),\"\",'Übersicht seit Jahresbeginn'!B7)","v":""},0,{"$f":"COUNTIF($F7:CS7, \"P\")","v":0},{"$f":"COUNTIF($F7:CS7, \"K\")","v":0}]
[{"$f":"IF(ISBLANK('Übersicht seit Jahresbeginn'!A8),\"\",'Übersicht seit Jahresbeginn'!A8)","v":""},{"$f":"IF(ISBLANK('Übersicht seit Jahresbeginn'!B8),\"\",'Übersicht seit Jahresbeginn'!B8)","v":""},0,{"$f":"COUNTIF($F8:CS8, \"P\")","v":0},{"$f":"COUNTIF($F8:CS8, \"K\")","v":0}]
[{"$f":"IF(ISBLANK('Übersicht seit Jahresbeginn'!A9),\"\",'Übersicht seit Jahresbeginn'!A9)","v":""},{"$f":"IF(ISBLANK('Übersicht seit Jahresbeginn'!B9),\"\",'Übersicht seit Jahresbeginn'!B9)","v":""},0,{"$f":"COUNTIF($F9:CS9, \"P\")","v":0},{"$f":"COUNTIF($F9:CS9, \"K\")","v":0}]
[{"$f":"IF(ISBLANK('Übersicht seit Jahresbeginn'!A10),\"\",'Übersicht seit Jahresbeginn'!A10)","v":""},{"$f":"IF(ISBLANK('Übersicht seit Jahresbeginn'!B10),\"\",'Übersicht seit Jahresbeginn'!B10)","v":""},0,{"$f":"COUNTIF($F10:CS10, \"P\")","v":0},{"$f":"COUNTIF($F10:CS10, \"K\")","v":0}]
[{"$f":"IF(ISBLANK('Übersicht seit Jahresbeginn'!A11),\"\",'Übersicht seit Jahresbeginn'!A11)","v":""},{"$f":"IF(ISBLANK('Übersicht seit Jahresbeginn'!B11),\"\",'Übersicht seit Jahresbeginn'!B11)","v":""},0,{"$f":"COUNTIF($F11:CS11, \"P\")","v":0},{"$f":"COUNTIF($F11:CS11, \"K\")","v":0}]
[{"$f":"IF(ISBLANK('Übersicht seit Jahresbeginn'!A12),\"\",'Übersicht seit Jahresbeginn'!A12)","v":""},{"$f":"IF(ISBLANK('Übersicht seit Jahresbeginn'!B12),\"\",'Übersicht seit Jahresbeginn'!B12)","v":""},0,{"$f":"COUNTIF($F12:CS12, \"P\")","v":0},{"$f":"COUNTIF($F12:CS12, \"K\")","v":0}]
[{"$f":"IF(ISBLANK('Übersicht seit Jahresbeginn'!A13),\"\",'Übersicht seit Jahresbeginn'!A13)","v":""},{"$f":"IF(ISBLANK('Übersicht seit Jahresbeginn'!B13),\"\",'Übersicht seit Jahresbeginn'!B13)","v":""},0,{"$f":"COUNTIF($F13:CS13, \"P\")","v":0},{"$f":"COUNTIF($F13:CS13, \"K\")","v":0}]
[{"$f":"IF(ISBLANK('Übersicht seit Jahresbeginn'!A14),\"\",'Übersicht seit Jahresbeginn'!A14)","v":""},{"$f":"IF(ISBLANK('Übersicht seit Jahresbeginn'!B14),\"\",'Übersicht seit Jahresbeginn'!B14)","v":""},0,{"$f":"COUNTIF($F14:CS14, \"P\")","v":0},{"$f":"COUNTIF($F14:CS14, \"K\")","v":0}]
[{"$f":"IF(ISBLANK('Übersicht seit Jahresbeginn'!A15),\"\",'Übersicht seit Jahresbeginn'!A15)","v":""},{"$f":"IF(ISBLANK('Übersicht seit Jahresbeginn'!B15),\"\",'Übersicht seit Jahresbeginn'!B15)","v":""},0,{"$f":"COUNTIF($F15:CS15, \"P\")","v":0},{"$f":"COUNTIF($F15:CS15, \"K\")","v":0}]
[{"$f":"IF(ISBLANK('Übersicht seit Jahresbeginn'!A16),\"\",'Übersicht seit Jahresbeginn'!A16)","v":""},{"$f":"IF(ISBLANK('Übersicht seit Jahresbeginn'!B16),\"\",'Übersicht seit Jahresbeginn'!B16)","v":""},0,{"$f":"COUNTIF($F16:CS16, \"P\")","v":0},{"$f":"COUNTIF($F16:CS16, \"K\")","v":0}]
[{"$f":"IF(ISBLANK('Übersicht seit Jahresbeginn'!A17),\"\",'Übersicht seit Jahresbeginn'!A17)","v":""},{"$f":"IF(ISBLANK('Übersicht seit Jahresbeginn'!B17),\"\",'Übersicht seit Jahresbeginn'!B17)","v":""},0,{"$f":"COUNTIF($F17:CS17, \"P\")","v":0},{"$f":"COUNTIF($F17:CS17, \"K\")","v":0}]
[{"$f":"IF(ISBLANK('Übersicht seit Jahresbeginn'!A18),\"\",'Übersicht seit Jahresbeginn'!A18)","v":""},{"$f":"IF(ISBLANK('Übersicht seit Jahresbeginn'!B18),\"\",'Übersicht seit Jahresbeginn'!B18)","v":""},0,{"$f":"COUNTIF($F18:CS18, \"P\")","v":0},{"$f":"COUNTIF($F18:CS18, \"K\")","v":0}]
[{"$f":"IF(ISBLANK('Übersicht seit Jahresbeginn'!A19),\"\",'Übersicht seit Jahresbeginn'!A19)","v":""},{"$f":"IF(ISBLANK('Übersicht seit Jahresbeginn'!B19),\"\",'Übersicht seit Jahresbeginn'!B19)","v":""},0,{"$f":"COUNTIF($F19:CS19, \"P\")","v":0},{"$f":"COUNTIF($F19:CS19, \"K\")","v":0}]
[{"$f":"IF(ISBLANK('Übersicht seit Jahresbeginn'!A20),\"\",'Übersicht seit Jahresbeginn'!A20)","v":""},{"$f":"IF(ISBLANK('Übersicht seit Jahresbeginn'!B20),\"\",'Übersicht seit Jahresbeginn'!B20)","v":""},0,{"$f":"COUNTIF($F20:CS20, \"P\")","v":0},{"$f":"COUNTIF($F20:CS20, \"K\")","v":0}]
[{"$f":"IF(ISBLANK('Übersicht seit Jahresbeginn'!A21),\"\",'Übersicht seit Jahresbeginn'!A21)","v":""},{"$f":"IF(ISBLANK('Übersicht seit Jahresbeginn'!B21),\"\",'Übersicht seit Jahresbeginn'!B21)","v":""},0,{"$f":"COUNTIF($F21:CS21, \"P\")","v":0},{"$f":"COUNTIF($F21:CS21, \"K\")","v":0}]
[{"$f":"IF(ISBLANK('Übersicht seit Jahresbeginn'!A22),\"\",'Übersicht seit Jahresbeginn'!A22)","v":""},{"$f":"IF(ISBLANK('Übersicht seit Jahresbeginn'!B22),\"\",'Übersicht seit Jahresbeginn'!B22)","v":""},0,{"$f":"COUNTIF($F22:CS22, \"P\")","v":0},{"$f":"COUNTIF($F22:CS22, \"K\")","v":0}]
[{"$f":"IF(ISBLANK('Übersicht seit Jahresbeginn'!A23),\"\",'Übersicht seit Jahresbeginn'!A23)","v":""},{"$f":"IF(ISBLANK('Übersicht seit Jahresbeginn'!B23),\"\",'Übersicht seit Jahresbeginn'!B23)","v":""},0,{"$f":"COUNTIF($F23:CS23, \"P\")","v":0},{"$f":"COUNTIF($F23:CS23, \"K\")","v":0}]
[{"$f":"IF(ISBLANK('Übersicht seit Jahresbeginn'!A24),\"\",'Übersicht seit Jahresbeginn'!A24)","v":""},{"$f":"IF(ISBLANK('Übersicht seit Jahresbeginn'!B24),\"\",'Übersicht seit Jahresbeginn'!B24)","v":""},0,{"$f":"COUNTIF($F24:CS24, \"P\")","v":0},{"$f":"COUNTIF($F24:CS24, \"K\")","v":0}]
[{"$f":"IF(ISBLANK('Übersicht seit Jahresbeginn'!A25),\"\",'Übersicht seit Jahresbeginn'!A25)","v":""},{"$f":"IF(ISBLANK('Übersicht seit Jahresbeginn'!B25),\"\",'Übersicht seit Jahresbeginn'!B25)","v":""},0,{"$f":"COUNTIF($F25:CS25, \"P\")","v":0},{"$f":"COUNTIF($F25:CS25, \"K\")","v":0}]
[{"$f":"IF(ISBLANK('Übersicht seit Jahresbeginn'!A26),\"\",'Übersicht seit Jahresbeginn'!A26)","v":""},{"$f":"IF(ISBLANK('Übersicht seit Jahresbeginn'!B26),\"\",'Übersicht seit Jahresbeginn'!B26)","v":""},0,{"$f":"COUNTIF($F26:CS26, \"P\")","v":0},{"$f":"COUNTIF($F26:CS26, \"K\")","v":0}]
[{"$f":"IF(ISBLANK('Übersicht seit Jahresbeginn'!A27),\"\",'Übersicht seit Jahresbeginn'!A27)","v":""},{"$f":"IF(ISBLANK('Übersicht seit Jahresbeginn'!B27),\"\",'Übersicht seit Jahresbeginn'!B27)","v":""},0,{"$f":"COUNTIF($F27:CS27, \"P\")","v":0},{"$f":"COUNTIF($F27:CS27, \"K\")","v":0}]
[{"$f":"IF(ISBLANK('Übersicht seit Jahresbeginn'!A28),\"\",'Übersicht seit Jahresbeginn'!A28)","v":""},{"$f":"IF(ISBLANK('Übersicht seit Jahresbeginn'!B28),\"\",'Übersicht seit Jahresbeginn'!B28)","v":""},0,{"$f":"COUNTIF($F28:CS28, \"P\")","v":0},{"$f":"COUNTIF($F28:CS28, \"K\")","v":0}]
[{"$f":"IF(ISBLANK('Übersicht seit Jahresbeginn'!A29),\"\",'Übersicht seit Jahresbeginn'!A29)","v":""},{"$f":"IF(ISBLANK('Übersicht seit Jahresbeginn'!B29),\"\",'Übersicht seit Jahresbeginn'!B29)","v":""},0,{"$f":"COUNTIF($F29:CS29, \"P\")","v":0},{"$f":"COUNTIF($F29:CS29, \"K\")","v":0}]
[{"$f":"IF(ISBLANK('Übersicht seit Jahresbeginn'!A30),\"\",'Übersicht seit Jahresbeginn'!A30)","v":""},{"$f":"IF(ISBLANK('Übersicht seit Jahresbeginn'!B30),\"\",'Übersicht seit Jahresbeginn'!B30)","v":""},0,{"$f":"COUNTIF($F30:CS30, \"P\")","v":0},{"$f":"COUNTIF($F30:CS30, \"K\")","v":0}]
[{"$f":"IF(ISBLANK('Übersicht seit Jahresbeginn'!A31),\"\",'Übersicht seit Jahresbeginn'!A31)","v":""},{"$f":"IF(ISBLANK('Übersicht seit Jahresbeginn'!B31),\"\",'Übersicht seit Jahresbeginn'!B31)","v":""},0,{"$f":"COUNTIF($F31:CS31, \"P\")","v":0},{"$f":"COUNTIF($F31:CS31, \"K\")","v":0}]
[{"$f":"IF(ISBLANK('Übersicht seit Jahresbeginn'!A32),\"\",'Übersicht seit Jahresbeginn'!A32)","v":""},{"$f":"IF(ISBLANK('Übersicht seit Jahresbeginn'!B32),\"\",'Übersicht seit Jahresbeginn'!B32)","v":""},0,{"$f":"COUNTIF($F32:CS32, \"P\")","v":0},{"$f":"COUNTIF($F32:CS32, \"K\")","v":0}]
[{"$f":"IF(ISBLANK('Übersicht seit Jahresbeginn'!A33),\"\",'Übersicht seit Jahresbeginn'!A33)","v":""},{"$f":"IF(ISBLANK('Übersicht seit Jahresbeginn'!B33),\"\",'Übersicht seit Jahresbeginn'!B33)","v":""},0,{"$f":"COUNTIF($F33:CS33, \"P\")","v":0},{"$f":"COUNTIF($F33:CS33, \"K\")","v":0}]
[{"$f":"IF(ISBLANK('Übersicht seit Jahresbeginn'!A34),\"\",'Übersicht seit Jahresbeginn'!A34)","v":""},{"$f":"IF(ISBLANK('Übersicht seit Jahresbeginn'!B34),\"\",'Übersicht seit Jahresbeginn'!B34)","v":""},0,{"$f":"COUNTIF($F34:CS34, \"P\")","v":0},{"$f":"COUNTIF($F34:CS34, \"K\")","v":0}]
[{"$f":"IF(ISBLANK('Übersicht seit Jahresbeginn'!A35),\"\",'Übersicht seit Jahresbeginn'!A35)","v":""},{"$f":"IF(ISBLANK('Übersicht seit Jahresbeginn'!B35),\"\",'Übersicht seit Jahresbeginn'!B35)","v":""},0,{"$f":"COUNTIF($F35:CS35, \"P\")","v":0},{"$f":"COUNTIF($F35:CS35, \"K\")","v":0}]
[{"$f":"IF(ISBLANK('Übersicht seit Jahresbeginn'!A36),\"\",'Übersicht seit Jahresbeginn'!A36)","v":""},{"$f":"IF(ISBLANK('Übersicht seit Jahresbeginn'!B36),\"\",'Übersicht seit Jahresbeginn'!B36)","v":""},0,{"$f":"COUNTIF($F36:CS36, \"P\")","v":0},{"$f":"COUNTIF($F36:CS36, \"K\")","v":0}]